fUSD/lending_fUSD_20240619
["ID","MTS","AMOUNT","RATE_DAILY","PERIOD"]
[329867656,1718775061646,-1494.79,0.00013972,2]
[329867657,1718775061657,-2854.41,0.00013972,2]
[329867658,1718775061668,-589.22,0.00013972,2]
[329867659,1718775061679,-13553.92,0.00013972,2]
[329867660,1718775061693,-500.0,0.00013972,2]
[329867661,1718775061705,-506.06826649,0.00013972,2]
[329867662,1718775061716,-4819.69,0.00013972,2]
[329867663,1718775061728,-5046.77,0.00013972,2]
[329867664,1718775061739,-1940.33,0.00013972,2]
[329867665,1718775061750,-1533.99,0.00013972,2]
[329867666,1718775061761,-500.0,0.00013972,2]
[329867667,1718775061772,-808.06,0.00013972,2]
[329867668,1718775061782,-3304.74,0.00013972,2]
[329867669,1718775061793,-805.23,0.00013972,2]
[329867670,1718775061805,-1200.65,0.00013972,2]
[329867671,1718775061816,-1268.96,0.00013972,2]
[329867672,1718775061826,-1747.05,0.00013972,2]
[329867673,1718775061838,-1073.9,0.00013972,2]
[329867674,1718775061850,-261.69810284,0.00013972,2]
[329867675,1718775061861,-1436.14,0.00013972,2]
[329867676,1718775061872,-1489.87,0.00013972,2]
[329867677,1718775061882,-544.17659053,0.00013972,2]
[329867678,1718775061894,-507.70256176,0.00013972,2]
[329867679,1718775061905,-853.67,0.00013972,2]
[329867680,1718775061916,-1913.54,0.00013972,2]
[329867681,1718775061927,-500.0,0.00013972,2]
[329867682,1718775061937,-3072.83,0.00013972,2]
[329867683,1718775061948,-45169.42,0.00013972,2]
[329867684,1718775061958,-2348.83,0.00013972,2]
[329867685,1718775061968,-19047.6,0.00013972,2]
[329867686,1718775061979,-635.73,0.00013972,2]
[329867687,1718775061989,-151.0,0.00013972,2]
[329867688,1718775062000,-151.0,0.00013972,2]
[329867689,1718775062011,-1437.77,0.00013972,2]
[329867690,1718775062022,-207.560287,0.00013972,2]
[329867691,1718775062032,-500.0,0.00013972,2]
[329867692,1718775062043,-500.0,0.00013972,2]
[329867693,1718775062056,-659.56,0.00013972,2]
[329867694,1718775062067,-9625.95,0.00013972,2]
[329867695,1718775062078,-1366.97,0.00013972,2]
[329867696,1718775062088,-500.0,0.00013972,2]
[329867697,1718775062099,-500.0,0.00013972,2]
[329867698,1718775062110,-1546.24,0.00013972,2]
[329867699,1718775062120,-727.27,0.00013972,2]
[329867700,1718775062132,-1475.4,0.00013972,2]
[329867701,1718775062143,-571.09,0.00013972,2]
[329867702,1718775062154,-500.0,0.00013972,2]
[329867703,1718775062165,-21475.35,0.00013972,2]
[329867704,1718775062176,-500.0,0.00013972,2]
[329867705,1718775062187,-910.63,0.00013972,2]
[329867706,1718775062198,-289.52665571,0.00013972,2]
[329867707,1718775062209,-4533.49,0.00013972,2]
[329867708,1718775062220,-500.0,0.00013972,2]
[329867709,1718775062231,-46725.71,0.00013972,2]
[329867710,1718775062241,-1925.19,0.00013972,2]
[329867711,1718775062251,-2596.39,0.00013972,2]
[329867712,1718775062262,-241.06305265,0.00013972,2]
[329867713,1718775062272,-1644.15,0.00013972,2]
[329867714,1718775062282,-500.0,0.00013972,2]
[329867715,1718775062293,-500.0,0.00013972,2]
[329867716,1718775062304,-608.93,0.00013972,2]
[329867717,1718775062314,-1114.26,0.00013972,2]
[329867718,1718775062324,-500.0,0.00013972,2]
[329867719,1718775062334,-500.0,0.00013972,2]
[329867720,1718775062345,-500.0,0.00013972,2]
[329867721,1718775062356,-6411.15,0.00013972,2]
[329867722,1718775062368,-4249.78,0.00013972,2]
[329867723,1718775062379,-2051.19,0.00013972,2]
[329867724,1718775062390,-2365.83,0.00013972,2]
[329867725,1718775062402,-500.0,0.00013972,2]
[329867726,1718775062413,-500.0,0.00013972,2]
[329867727,1718775062423,-500.0,0.00013972,2]
[329867728,1718775062434,-631.46,0.00013972,2]
[329867729,1718775062444,-2298.15,0.00013972,2]
[329867730,1718775062456,-504.22312271,0.00013972,2]
[329867731,1718775062467,-262.84508568,0.00013972,2]
[329867732,1718775062477,-1385.72,0.00013972,2]
[329867733,1718775062488,-14572.98,0.00013972,2]
[329867734,1718775062498,-500.0,0.00013972,2]
[329867735,1718775062509,-500.0,0.00013972,2]
[329867736,1718775062520,-8831.3,0.00013972,2]
[329867737,1718775062531,-500.0,0.00013972,2]
[329867738,1718775062542,-2055.81,0.00013972,2]
[329867739,1718775062555,-500.0,0.00013972,2]
[329867740,1718775062565,-1474.94,0.00013972,2]
[329867741,1718775062576,-4260.27,0.00013972,2]
[329867742,1718775062586,-1767.49,0.00013972,2]
[329867743,1718775062600,-546.14264553,0.00013972,2]
[329867744,1718775062614,-1647.18,0.00013972,2]
[329867745,1718775062629,-500.0,0.00013972,2]
[329867746,1718775062640,-1185.72,0.00013972,2]
[329867747,1718775062652,-2671.9,0.00013972,2]
[329867748,1718775062662,-3526.79,0.00013972,2]
[329867749,1718775062673,-500.0,0.00013972,2]
[329867750,1718775062683,-500.0,0.00013972,2]
[329867751,1718775062696,-1802.87,0.00013972,2]
[329867752,1718775062707,-1193.14,0.00013972,2]
[329867753,1718775062718,-1392.39,0.00013972,2]
[329867754,1718775062728,-1189.12,0.00013972,2]
[329867755,1718775062738,-788.56,0.00013972,2]
[329867756,1718775062749,-500.0,0.00013972,2]
[329867757,1718775062760,-500.0,0.00013972,2]
[329867758,1718775062770,-500.0,0.00013972,2]
[329867759,1718775062780,-500.0,0.00013972,2]
[329867760,1718775062790,-527.07,0.00013972,2]
[329867761,1718775062801,-500.0,0.00013972,2]
[329867762,1718775062811,-500.0,0.00013972,2]
[329867763,1718775062822,-1056.9,0.00013972,2]
[329867764,1718775062832,-500.0,0.00013972,2]
[329867765,1718775062842,-916.58,0.00013972,2]
[329867766,1718775062852,-500.0,0.00013972,2]
[329867767,1718775062863,-500.0,0.00013972,2]
[329867768,1718775062874,-500.0,0.00013972,2]
[329867769,1718775062885,-2224.11,0.00013972,2]
[329867770,1718775062896,-1783.54,0.00013972,2]
[329867771,1718775062907,-5341.18,0.00013972,2]
[329867772,1718775062918,-681.39,0.00013972,2]
[329867773,1718775062928,-500.0,0.00013972,2]
[329867774,1718775062939,-505.06582883,0.00013972,2]
[329867775,1718775062949,-500.0,0.00013972,2]
[329867776,1718775062960,-930.09,0.00013972,2]
[329867777,1718775062970,-500.0,0.00013972,2]
[329867778,1718775062980,-500.0,0.00013972,2]
[329867779,1718775062990,-6071.67,0.00013972,2]
[329867780,1718775063001,-729.72,0.00013972,2]
[329867781,1718775063011,-5763.32,0.00013972,2]
[329867782,1718775063021,-34500.02,0.00013972,2]
[329867783,1718775063031,-1018.07,0.00013972,2]
[329867784,1718775063041,-5755.05,0.00013972,2]
[329867785,1718775063054,-500.0,0.00013972,2]
[329867786,1718775063064,-1230.0,0.00013972,2]
[329867787,1718775063074,-2679.62,0.00013972,2]
[329867788,1718775063084,-2178.96,0.00013972,2]
[329867789,1718775063095,-587.65,0.00013972,2]
[329867790,1718775063105,-1704.48,0.00013972,2]
[329867791,1718775063115,-500.0,0.00013972,2]
[329867792,1718775063125,-500.0,0.00013972,2]
[329867793,1718775063135,-500.0,0.00013972,2]
[329867794,1718775063146,-1732.46,0.00013972,2]
[329867795,1718775063156,-500.0,0.00013972,2]
[329867796,1718775063167,-500.0,0.00013972,2]
[329867797,1718775063177,-500.0,0.00013972,2]
[329867798,1718775063187,-3559.45,0.00013972,2]
[329867799,1718775063198,-2685.85,0.00013972,2]
[329867800,1718775063208,-500.0,0.00013972,2]
[329867801,1718775063218,-2504.6,0.00013972,2]
[329867802,1718775063229,-1069.31,0.00013972,2]
[329867803,1718775063239,-500.0,0.00013972,2]
[329867804,1718775063249,-2050.02,0.00013972,2]
[329867805,1718775063259,-2536.63,0.00013972,2]
[329867806,1718775063270,-557.39,0.00013972,2]
[329867807,1718775063280,-500.0,0.00013972,2]
[329867808,1718775063290,-500.0,0.00013972,2]
[329867809,1718775063301,-301.90873338,0.00013972,2]
[329867810,1718775063311,-500.0,0.00013972,2]
[329867811,1718775063320,-500.0,0.00013972,2]
[329867812,1718775063330,-1505.89,0.00013972,2]
[329867813,1718775063340,-552.22,0.00013972,2]
[329867814,1718775063351,-1572.55,0.00013972,2]
[329867815,1718775063360,-841.24,0.00013972,2]
[329867816,1718775063370,-500.0,0.00013972,2]
[329867817,1718775063380,-1353.04,0.00013972,2]
[329867818,1718775063390,-811.96,0.00013972,2]
[329867819,1718775063400,-3598.36,0.00013972,2]
[329867820,1718775063410,-3420.04,0.00013972,2]
[329867821,1718775063420,-1704.32,0.00013972,2]
[329867822,1718775063430,-658.32,0.00013972,2]
[329867823,1718775063441,-2402.57,0.00013972,2]
[329867824,1718775063451,-500.0,0.00013972,2]
[329867825,1718775063461,-3749.74,0.00013972,2]
[329867826,1718775063472,-772.29,0.00013972,2]
[329867827,1718775063482,-500.0,0.00013972,2]
[329867828,1718775063492,-4458.73,0.00013972,2]
[329867829,1718775063502,-603.09049142,0.00013972,2]
[329867830,1718775063512,-9811.0,0.00013972,2]
[329867831,1718775063522,-500.0,0.00013972,2]
[329867832,1718775063532,-829.27,0.00013972,2]
[329867833,1718775063543,-1635.72,0.00013972,2]
[329867834,1718775063554,-1255.13,0.00013972,2]
[329867835,1718775063564,-1252.01,0.00013972,2]
[329867836,1718775063581,-1398.85,0.00013972,2]
[329867837,1718775063592,-500.0,0.00013972,2]
[329867838,1718775063605,-598.41,0.00013972,2]
[329867839,1718775063616,-1551.43,0.00013972,2]
[329867840,1718775063627,-500.0,0.00013972,2]
[329867841,1718775063638,-508.99397074,0.00013972,2]
[329867842,1718775063650,-2576.77,0.00013972,2]
[329867843,1718775063661,-3381.53,0.00013972,2]
[329867844,1718775063671,-684.75,0.00013972,2]
[329867845,1718775063682,-653.29936,0.00013972,2]
[329867846,1718775063696,-653.29936,0.00013972,2]
[329867847,1718775063707,-882.61,0.00013972,2]
[329867848,1718775063719,-653.29936,0.00013972,2]
[329867849,1718775063730,-653.29936,0.00013972,2]
[329867850,1718775063741,-1627.76,0.00013972,2]
[329867851,1718775063752,-1707.49,0.00013972,2]
[329867852,1718775063763,-500.0,0.00013972,2]
[329867853,1718775063774,-1071.06,0.00013972,2]
[329867854,1718775063785,-653.29936,0.00013972,2]
[329867855,1718775063798,-653.29936,0.00013972,2]
[329867856,1718775063808,-653.29936,0.00013972,2]
[329867857,1718775063819,-593.16,0.00013972,2]
[329867858,1718775063829,-653.29936,0.00013972,2]
[329867859,1718775063840,-1136.96,0.00013972,2]
[329867860,1718775063851,-877.51,0.00013972,2]
[329867861,1718775063861,-11798.38,0.00013972,2]
[329867862,1718775063872,-500.0,0.00013972,2]
[329867863,1718775063883,-500.0,0.00013972,2]
[329867864,1718775063895,-520.26740097,0.00013972,2]
[329867865,1718775063907,-3690.26,0.00013972,2]
[329867866,1718775063920,-500.0,0.00013972,2]
[329867867,1718775063931,-500.0,0.00013972,2]
[329867868,1718775063943,-500.0,0.00013972,2]
[329867869,1718775063955,-3269.39,0.00013972,2]
[329867870,1718775063967,-820.47,0.00013972,2]
[329867871,1718775063979,-1505.24,0.00013972,2]
[329867872,1718775063993,-2188.53,0.00013972,2]
[329867873,1718775064369,-1742.43,0.00013972,2]
[329867874,1718775064379,-8309.16,0.00013972,2]
[329867875,1718775064389,-4693.16,0.00013972,2]
[329867876,1718775064398,-500.0,0.00013972,2]
[329867877,1718775064408,-1038.43,0.00013972,2]
[329867878,1718775064418,-500.0,0.00013972,2]
[329867879,1718775064427,-785.15,0.00013972,2]
[329867880,1718775064437,-515.65096866,0.00013972,2]
[329867881,1718775064448,-500.0,0.00013972,2]
[329867882,1718775064457,-830.86,0.00013972,2]
[329867883,1718775064467,-5300.51,0.00013972,2]
[329867884,1718775064477,-500.0,0.00013972,2]
[329867885,1718775064487,-500.0,0.00013972,2]
[329867886,1718775064497,-1378.72,0.00013972,2]
[329867887,1718775064508,-4167.92,0.00013972,2]
[329867888,1718775064518,-657.7,0.00013972,2]
[329867889,1718775064527,-500.0,0.00013972,2]
[329867890,1718775064537,-1046.51,0.00013972,2]
[329867891,1718775064548,-1473.35,0.00013972,2]
[329867892,1718775064557,-6991.97,0.00013972,2]
[329867893,1718775064567,-1518.02,0.00013972,2]
[329867894,1718775064576,-1979.23,0.00013972,2]
[329867895,1718775064586,-500.0,0.00013972,2]
[329867896,1718775064596,-500.0,0.00013972,2]
[329867897,1718775064609,-500.0,0.00013972,2]
[329867898,1718775064621,-1140.72,0.00013972,2]
[329867899,1718775064631,-900.87,0.00013972,2]
[329867900,1718775064641,-9181.81,0.00013972,2]
[329867901,1718775064651,-3780.5,0.00013972,2]
[329867902,1718775064661,-2294.2,0.00013972,2]
[329867903,1718775064671,-1263.37,0.00013972,2]
[329867904,1718775064680,-990.64,0.00013972,2]
[329867905,1718775064691,-2519.1,0.00013972,2]
[329867906,1718775064701,-971.73,0.00013972,2]
[329867907,1718775064710,-1373.68,0.00013972,2]
[329867908,1718775064719,-579.79005097,0.00013972,2]
[329867909,1718775064728,-500.0,0.00013972,2]
[329867910,1718775064738,-1081.05,0.00013972,2]
[329867911,1718775064747,-4553.97,0.00013972,2]
[329867912,1718775064756,-1183.31,0.00013972,2]
[329867913,1718775064768,-854.8,0.00013972,2]
[329867914,1718775064777,-500.0,0.00013972,2]
[329867915,1718775064788,-1522.91,0.00013972,2]
[329867916,1718775064798,-10026.97,0.00013972,2]
[329867917,1718775064808,-1875.11,0.00013972,2]
[329867918,1718775064817,-2561.05,0.00013972,2]
[329867919,1718775064827,-3336.17,0.00013972,2]
[329867920,1718775064838,-3367.51,0.00013972,2]
[329867921,1718775064848,-500.0,0.00013972,2]
[329867922,1718775064858,-2799.06,0.00013972,2]
[329867923,1718775064868,-500.0,0.00013972,2]
[329867924,1718775064879,-8446.81,0.00013972,2]
[329867925,1718775064889,-232.72858262,0.00013972,2]
[329867926,1718775064902,-500.0,0.00013972,2]
[329867927,1718775064912,-500.0,0.00013972,2]
[329867928,1718775064922,-4488.74,0.00013972,2]
[329867929,1718775064932,-500.0,0.00013972,2]
[329867930,1718775064942,-500.0,0.00013972,2]
[329867931,1718775064953,-866.51,0.00013972,2]
[329867932,1718775064963,-653.31,0.00013972,2]
[329867933,1718775064972,-919.98,0.00013972,2]
[329867934,1718775064982,-1382.59,0.00013972,2]
[329867935,1718775064992,-1296.85,0.00013972,2]
[329867936,1718775065001,-5729.95,0.00013972,2]
[329867937,1718775065012,-1599.12,0.00013972,2]
[329867938,1718775065022,-5996.48,0.00013972,2]
[329867939,1718775065032,-534.04,0.00013972,2]
[329867940,1718775065042,-1051.78,0.00013972,2]
[329867941,1718775065054,-5119.93,0.00013972,2]
[329867942,1718775065063,-500.0,0.00013972,2]
[329867943,1718775065073,-500.0,0.00013972,2]
[329867944,1718775065083,-500.0,0.00013972,2]
[329867945,1718775065092,-3851.05,0.00013972,2]
[329867946,1718775065103,-151.0,0.00013972,2]
[329867947,1718775065112,-182.496426,0.00013972,2]
[329867948,1718775065122,-1555.0,0.00013972,2]
[329867949,1718775065132,-711.97,0.00013972,2]
[329867950,1718775065142,-1990.87,0.00013972,2]
[329867951,1718775065152,-500.0,0.00013972,2]
[329867952,1718775065161,-500.0,0.00013972,2]
[329867953,1718775065171,-808.58,0.00013972,2]
[329867954,1718775065181,-2297.47,0.00013972,2]
[329867955,1718775065190,-13767.3,0.00013972,2]
[329867956,1718775065200,-1058.04,0.00013972,2]
[329867957,1718775065209,-500.0,0.00013972,2]
[329867958,1718775065219,-500.0,0.00013972,2]
[329867959,1718775065228,-2536.51,0.00013972,2]
[329867960,1718775065238,-3447.57,0.00013972,2]
[329867961,1718775065248,-572.56,0.00013972,2]
[329867962,1718775065257,-14951.09,0.00013972,2]
[329867963,1718775065267,-151.0,0.00013972,2]
[329867964,1718775065277,-151.0,0.00013972,2]
[329867965,1718775065286,-151.0,0.00013972,2]
[329867966,1718775065295,-300.786084,0.00013972,2]
[329867967,1718775065306,-3856.94,0.00013972,2]
[329867968,1718775065315,-3875.05,0.00013972,2]
[329867969,1718775065324,-500.0,0.00013972,2]
[329867970,1718775065334,-1570.47,0.00013972,2]
[329867971,1718775065343,-621.02,0.00013972,2]
[329867972,1718775065353,-1594.89,0.00013972,2]
[329867973,1718775065362,-500.0,0.00013972,2]
[329867974,1718775065372,-2945.91,0.00013972,2]
[329867975,1718775065381,-500.0,0.00013972,2]
[329867976,1718775065391,-7200.22,0.00013972,2]
[329867977,1718775065400,-500.0,0.00013972,2]
[329867978,1718775065409,-6098.61,0.00013972,2]
[329867979,1718775065418,-1973.42,0.00013972,2]
[329867980,1718775065428,-2442.95,0.00013972,2]
[329867981,1718775065437,-500.0,0.00013972,2]
[329867982,1718775065447,-531.59151935,0.00013972,2]
[329867983,1718775065456,-3066.13,0.00013972,2]
[329867984,1718775065465,-500.0,0.00013972,2]
[329867985,1718775065474,-739.17,0.00013972,2]
[329867986,1718775065484,-2163.71,0.00013972,2]
[329867987,1718775065493,-500.0,0.00013972,2]
[329867988,1718775065502,-500.0,0.00013972,2]
[329867989,1718775065512,-1531.13,0.00013972,2]
[329867990,1718775065521,-3662.78,0.00013972,2]
[329867991,1718775065531,-500.0,0.00013972,2]
[329867992,1718775065540,-500.0,0.00013972,2]
[329867993,1718775065550,-500.0,0.00013972,2]
[329867994,1718775065560,-3296.21,0.00013972,2]
[329867995,1718775065571,-3260.8,0.00013972,2]
[329867996,1718775065581,-7444.9,0.00013972,2]
[329867997,1718775065591,-2495.71,0.00013972,2]
[329867998,1718775065602,-500.0,0.00013972,2]
[329867999,1718775065619,-2151.18,0.00013972,2]
[329868000,1718775065629,-500.0,0.00013972,2]
[329868001,1718775065640,-4270.54,0.00013972,2]
[329868002,1718775065652,-500.0,0.00013972,2]
[329868003,1718775065663,-500.0,0.00013972,2]
[329868004,1718775065673,-500.0,0.00013972,2]
[329868005,1718775065685,-825.12,0.00013972,2]
[329868006,1718775065696,-992.79,0.00013972,2]
[329868007,1718775065707,-4130.28,0.00013972,2]
[329868008,1718775065716,-4706.03,0.00013972,2]
[329868009,1718775065726,-8676.76,0.00013972,2]
[329868010,1718775065736,-2486.89,0.00013972,2]
[329868011,1718775065747,-500.0,0.00013972,2]
[329868012,1718775065757,-2648.87,0.00013972,2]
[329868013,1718775065767,-1219.57,0.00013972,2]
[329868014,1718775065776,-531.95240475,0.00013972,2]
[329868015,1718775065786,-1335.6,0.00013972,2]
[329868016,1718775065795,-507.21507001,0.00013972,2]
[329868017,1718775065805,-263.03754712,0.00013972,2]
[329868018,1718775065815,-500.0,0.00013972,2]
[329868019,1718775065825,-2526.27,0.00013972,2]
[329868020,1718775065837,-520.34018819,0.00013972,2]
[329868021,1718775065849,-2610.99,0.00013972,2]
[329868022,1718775065860,-500.0,0.00013972,2]
[329868023,1718775065870,-500.0,0.00013972,2]
[329868024,1718775065879,-500.0,0.00013972,2]
[329868025,1718775065890,-500.0,0.00013972,2]
[329868026,1718775065899,-500.0,0.00013972,2]
[329868027,1718775065909,-500.0,0.00013972,2]
[329868028,1718775065920,-500.0,0.00013972,2]
[329868029,1718775065930,-500.0,0.00013972,2]
[329868030,1718775065939,-500.0,0.00013972,2]
[329868031,1718775065950,-500.0,0.00013972,2]
[329868032,1718775065959,-500.0,0.00013972,2]
[329868033,1718775065968,-500.55166614,0.00013972,2]
[329868034,1718775065978,-667.18,0.00013972,2]
[329868035,1718775065987,-11849.72,0.00013972,2]
[329868036,1718775065996,-8143.99,0.00013972,2]
[329868037,1718775066007,-8712.93,0.00013972,2]
[329868038,1718775066016,-500.0,0.00013972,2]
[329868039,1718775066026,-1110.36,0.00013972,2]
[329868040,1718775066036,-2500.63,0.00013972,2]
[329868041,1718775066046,-3731.89,0.00013972,2]
[329868042,1718775066056,-5706.62,0.00013972,2]
[329868043,1718775066066,-500.0,0.00013972,2]
[329868044,1718775066075,-500.0,0.00013972,2]
[329868045,1718775066086,-500.0,0.00013972,2]
[329868046,1718775066096,-3315.48,0.00013972,2]
[329868047,1718775066106,-505.75384995,0.00013972,2]
[329868048,1718775066115,-766.97,0.00013972,2]
[329868049,1718775066127,-500.0,0.00013972,2]
[329868050,1718775066136,-500.0,0.00013972,2]
[329868051,1718775066146,-500.0,0.00013972,2]
[329868052,1718775066155,-500.0,0.00013972,2]
[329868053,1718775066165,-500.0,0.00013972,2]
[329868054,1718775066175,-1590.82,0.00013972,2]
[329868055,1718775066185,-500.0,0.00013972,2]
[329868056,1718775066195,-500.0,0.00013972,2]
[329868057,1718775066205,-22454.25,0.00013972,2]
[329868058,1718775066214,-500.0,0.00013972,2]
[329868059,1718775066224,-500.0,0.00013972,2]
[329868060,1718775066233,-500.0,0.00013972,2]
[329868061,1718775066242,-500.0,0.00013972,2]
[329868062,1718775066251,-500.0,0.00013972,2]
[329868063,1718775066261,-500.0,0.00013972,2]
[329868064,1718775066270,-500.0,0.00013972,2]
[329868065,1718775066279,-7743.33113399,0.0001398,2]
[329868066,1718775066289,-200716.1171848,0.0001399,2]
[329868067,1718775066301,-10583.91603264,0.0001399,2]
[329868068,1718775066311,-159.96065188,0.00013997,2]
[329868069,1718775066320,-825.85777258,0.00013997,2]
[329868070,1718775066330,-156.08674796,0.00013997,2]
[329868071,1718775066340,-155.81793837,0.00013998,2]
[329868072,1718775066349,-155.0,0.00013999,2]
[329868073,1718775066359,-2448.53,0.00013999,2]
[329868074,1718775066370,-2448.53,0.00013999,2]
[329868075,1718775066380,-2448.53,0.00013999,2]
[329868076,1718775066389,-2448.53,0.00013999,2]
[329868077,1718775066399,-2448.6961696,0.00013999,2]
[329868078,1718775066409,-961117.3656766,0.00014,2]
[329868079,1718775066418,-1520375.85956908,0.00014,2]
[329868080,1718775066428,-1807888.65403644,0.00014,2]
[329868081,1718775066437,-603304.6666351,0.00014,2]
[329868082,1718775066447,-494.16204814,0.00014,2]
[329868083,1718775066457,-653.29936,0.00014,2]
[329868084,1718775066468,-653.299351,0.00014,2]
[329868085,1718775066477,-35367.87618277,0.00014011,2]
[329868086,1718775066487,-213.0,0.00014031,2]
[329868087,1718775066496,-150.0,0.00014031,2]
[329868088,1718775066505,-265.0,0.00014031,2]
[329868089,1718775066514,-162.0,0.00014031,2]
[329868090,1718775066523,-162.564,0.00014031,2]
[329868091,1718775066533,-226.077,0.00014031,2]
[329868092,1718775066543,-255.202,0.00014031,2]
[329868093,1718775066557,-278.217,0.00014031,2]
[329868094,1718775066567,-260.207,0.00014031,2]
[329868095,1718775066576,-195.689,0.00014031,2]
[329868097,1718775066586,-152.729,0.00014031,2]
[329868098,1718775066595,-159.028,0.00014031,2]
[329868099,1718775066609,-237.716,0.00014031,2]
[329868100,1718775066618,-226.535,0.00014031,2]
[329868101,1718775066629,-192.883,0.00014031,2]
[329868102,1718775066639,-193.746,0.00014031,2]
[329868103,1718775066651,-204.294,0.00014031,2]
[329868104,1718775066662,-11436.94563685,0.00014071,2]
[329868105,1718775066672,-260.13279399,0.00014146,2]
[329868106,1718775066682,-11436.94563685,0.0001419,2]
[329868107,1718775066776,-500.0,0.0001419,2]
[329868108,1718775066786,-500.0,0.0001419,2]
[329868109,1718775066797,-500.0,0.0001419,2]
[329868110,1718775066807,-500.0,0.0001419,2]
[329868111,1718775066816,-500.0,0.0001419,2]
[329868112,1718775066825,-500.0,0.0001419,2]
[329868113,1718775066834,-500.0,0.0001419,2]
[329868114,1718775066843,-500.0,0.0001419,2]
[329868115,1718775066852,-500.0,0.0001419,2]
[329868116,1718775066861,-500.0,0.0001419,2]
[329868117,1718775066871,-500.0,0.0001419,2]
[329868118,1718775066879,-500.0,0.0001419,2]
[329868119,1718775066889,-500.0,0.0001419,2]
[329868120,1718775066899,-500.0,0.0001419,2]
[329868121,1718775066909,-500.0,0.0001419,2]
[329868122,1718775066918,-500.0,0.0001419,2]
[329868123,1718775066927,-500.0,0.0001419,2]
[329868124,1718775066936,-500.0,0.0001419,2]
[329868125,1718775066945,-500.0,0.0001419,2]
[329868126,1718775066954,-500.0,0.0001419,2]
[329868127,1718775066964,-150.0,0.00014208,2]
[329868128,1718775066973,-35367.87618277,0.00014233,2]
[329868129,1718775066982,-500.0,0.00014246,2]
[329868130,1718775066991,-500.0,0.00014246,2]
[329868131,1718775067000,-500.0,0.00014246,2]
[329868132,1718775067010,-497.20318538,0.00014246,2]
[329868133,1718775067019,-500.0,0.00014246,2]
[329868134,1718775067029,-500.0,0.00014246,2]
[329868135,1718775067038,-500.0,0.00014246,2]
[329868136,1718775067047,-500.0,0.00014246,2]
[329868137,1718775067057,-534.32418195,0.00014246,2]
[329868138,1718775067067,-500.0,0.00014246,2]
[329868139,1718775067076,-982.86,0.00014246,2]
[329868140,1718775067085,-500.0,0.00014246,2]
[329868141,1718775067094,-512.11,0.00014246,2]
[329868142,1718775067103,-919.03,0.00014246,2]
[329868143,1718775067112,-500.0,0.00014246,2]
[329868144,1718775067122,-1201.25,0.00014246,2]
[329868145,1718775067131,-643.08320175,0.00014246,2]
[329868146,1718775067140,-1022.59,0.00014246,2]
[329868147,1718775067150,-500.0,0.00014246,2]
[329868148,1718775067159,-500.0,0.00014246,2]
[329868149,1718775067168,-500.0,0.00014246,2]
[329868150,1718775067178,-500.0,0.00014246,2]
[329868151,1718775067187,-656.06,0.00014246,2]
[329868152,1718775067196,-500.0,0.00014246,2]
[329868153,1718775067206,-619.76,0.00014246,2]
[329868154,1718775067215,-500.0,0.00014246,2]
[329868155,1718775067224,-500.0,0.00014246,2]
[329868156,1718775067233,-952.82,0.00014246,2]